fUSD/lending_fUSD_20260524
["ID","MTS","AMOUNT","RATE_DAILY","PERIOD"]
[422911222,1779613838000,-3141.91,0.00017728,2]
[422911227,1779613838000,-150.0,0.00017809,2]
[422911230,1779613838000,-150.0,0.00017817,2]
[422911256,1779613838000,-439.44845421,0.00018156,2]
[422911225,1779613838000,-150.0,0.00017787,2]
[422911224,1779613838000,-150.0,0.00017776,2]
[422911233,1779613838000,-150.0,0.00017889,2]
[422911234,1779613838000,-604042.8932,0.000179,2]
[422911232,1779613838000,-150.0,0.00017875,2]
[422911241,1779613838000,-150.0,0.00017975,2]
[422911226,1779613838000,-150.0,0.00017793,2]
[422911244,1779613838000,-30016.19477698,0.00018,2]
[422911242,1779613838000,-150.0,0.00017977,2]
[422911251,1779613838000,-150.0,0.00018075,2]
[422911253,1779613838000,-150.0,0.00018108,2]
[422911252,1779613838000,-150.0,0.00018082,2]
[422911248,1779613838000,-150.0,0.00018046,2]
[422911240,1779613838000,-150.0,0.00017969,2]
[422911246,1779613838000,-150.0,0.0001803,2]
[422911239,1779613838000,-150.0,0.00017942,2]
[422911243,1779613838000,-150.0,0.00017985,2]
[422911245,1779613838000,-150.0,0.00018008,2]
[422911235,1779613838000,-150.0,0.00017908,2]
[422911236,1779613838000,-150.0,0.00017908,2]
[422911237,1779613838000,-150.0,0.00017931,2]
[422911238,1779613838000,-150.0,0.00017931,2]
[422911294,1779613839000,-300.0,0.00018255,2]
[422911293,1779613839000,-300.0,0.00018255,2]
[422911285,1779613839000,-2744.71,0.00018255,2]
[422911295,1779613839000,-1192162.44933951,0.00018256,2]
[422911289,1779613839000,-2744.71,0.00018255,2]
[422911297,1779613839000,-7705.80141735,0.00018256,2]
[422911291,1779613839000,-2744.71,0.00018255,2]
[422911286,1779613839000,-2744.71,0.00018255,2]
[422911292,1779613839000,-300.0,0.00018255,2]
[422911287,1779613839000,-2744.71,0.00018255,2]
[422911288,1779613839000,-2744.71,0.00018255,2]
[422911290,1779613839000,-2744.71,0.00018255,2]
[422911299,1779613840000,-74177.94155511,0.00018256,2]
[422911298,1779613840000,-488.68187488,0.00018256,2]
[422911340,1779613843000,-3455.76259512,0.00018256,2]
[422911339,1779613843000,-1643.07623966,0.00018256,2]
[422911341,1779613843000,-4708.0747062,0.00018256,2]
[422911400,1779613846000,-9594.79998017,0.00018256,2]
[422911398,1779613846000,-253.52,0.00018256,2]
[422911399,1779613846000,-421.81463405,0.00018256,2]
[422911397,1779613846000,-929.27452614,0.00018256,2]
[422911407,1779614004000,282.97,0.00025909,120]
[422911415,1779614391000,668.35432874,0.00024794,120]
[422911417,1779614392000,668.35432874,0.00024928,120]
[422911416,1779614392000,668.35432874,0.00024861,120]
[422911420,1779614940000,1000.0,0.00028078,120]
[422911425,1779615008000,9661.41117454,7.992e-05,5]
[422911424,1779615008000,36449.9383326,7.992e-05,5]
[422911432,1779615031000,-162.62,7.992e-05,2]
[422911434,1779615031000,-1200.0,9.999e-05,2]
[422911437,1779615031000,-2284.0,0.00012099,2]
[422911433,1779615031000,-153.23,8.618e-05,2]
[422911440,1779615031000,-152.45,0.00015915,2]
[422911438,1779615031000,-166.41,0.00012681,2]
[422911439,1779615031000,-903.93,0.00015843,2]
[422911435,1779615031000,-1680.0,0.00010999,2]
[422911481,1779615032000,-453.90085798,0.00016951,2]
[422911485,1779615032000,-159.15,0.00017122,2]
[422911482,1779615032000,-9537.66486797,0.00016993,2]
[422911483,1779615032000,-453.90085798,0.00017051,2]
[422911484,1779615032000,-150.0,0.0001707,2]
[422911479,1779615032000,-150.0,0.00016892,2]
[422911477,1779615032000,-499.4,0.00016834,2]
[422911480,1779615032000,-150.0,0.00016951,2]
[422911478,1779615032000,-150.0,0.00016892,2]
[422911488,1779615032000,-453.90085798,0.00017151,2]
[422911475,1779615032000,-9537.664868,0.00016792,2]
[422911476,1779615032000,-150.0,0.00016833,2]
[422911486,1779615032000,-935.0,0.00017122,2]
[422911487,1779615032000,-746.12,0.00017123,2]
[422911494,1779615032000,-153.23,0.00017237,2]
[422911491,1779615032000,-150.0,0.00017188,2]
[422911493,1779615032000,-150.0,0.00017188,2]
[422911501,1779615032000,-500.0,0.0001735,2]
[422911492,1779615032000,-150.0,0.00017188,2]
[422911490,1779615032000,-150.0,0.00017188,2]
[422911495,1779615032000,-499.4,0.00017255,2]
[422911496,1779615032000,-282.97,0.00017273,2]
[422911499,1779615032000,-150.0,0.00017307,2]
[422911473,1779615032000,-200.0,0.00016669,2]
[422911498,1779615032000,-1565.57,0.00017273,2]
[422911497,1779615032000,-9414.43,0.00017273,2]
[422911500,1779615032000,-500.0,0.0001735,2]
[422911502,1779615032000,-308.98829116,0.0001735,2]
[422911489,1779615032000,-150.0,0.00017188,2]
[422911472,1779615032000,-106046.69,0.00016628,2]
[422911465,1779615032000,-150.0,0.00016595,2]
[422911466,1779615032000,-150.0,0.00016595,2]
[422911441,1779615032000,-173.16,0.00015968,2]
[422911442,1779615032000,-162.62,0.00015985,2]
[422911444,1779615032000,-150.0,0.00016003,2]
[422911445,1779615032000,-150.0,0.00016003,2]
[422911446,1779615032000,-150.0,0.00016003,2]
[422911443,1779615032000,-550.0,0.00016002,2]
[422911447,1779615032000,-151.12453134,0.00016003,2]
[422911449,1779615032000,-150.59932888,0.00016003,2]
[422911448,1779615032000,-150.0,0.00016003,2]
[422911452,1779615032000,-150.0,0.00016003,2]
[422911450,1779615032000,-150.37713029,0.00016003,2]
[422911453,1779615032000,-150.0,0.00016003,2]
[422911461,1779615032000,-150.0,0.00016299,2]
[422911455,1779615032000,-150.99,0.00016117,2]
[422911454,1779615032000,-20271.09,0.00016117,2]
[422911456,1779615032000,-706.04,0.00016117,2]
[422911457,1779615032000,-9999.99,0.00016117,2]
[422911459,1779615032000,-183.0,0.00016124,2]
[422911460,1779615032000,-150.0,0.0001624,2]
[422911458,1779615032000,-150.0,0.00016121,2]
[422911462,1779615032000,-150.0,0.00016358,2]
[422911503,1779615032000,-500.0,0.0001735,2]
[422911463,1779615032000,-449.8,0.00016438,2]
[422911468,1779615032000,-150.0,0.00016595,2]
[422911474,1779615032000,-150.0,0.00016714,2]
[422911467,1779615032000,-150.0,0.00016595,2]
[422911470,1779615032000,-868.91,0.00016617,2]
[422911469,1779615032000,-150.0,0.00016595,2]
[422911464,1779615032000,-150.0,0.00016477,2]
[422911471,1779615032000,-500.0,0.00016626,2]
[422911504,1779615032000,-500.0,0.0001735,2]
[422911451,1779615032000,-150.0,0.00016003,2]
[422911509,1779615032000,-500.0,0.0001735,2]
[422911537,1779615032000,-500.0,0.0001735,2]
[422911542,1779615032000,-500.0,0.0001735,2]
[422911553,1779615032000,-500.0,0.0001735,2]
[422911544,1779615032000,-500.0,0.0001735,2]
[422911545,1779615032000,-500.0,0.0001735,2]
[422911548,1779615032000,-500.0,0.0001735,2]
[422911543,1779615032000,-500.0,0.0001735,2]
[422911547,1779615032000,-500.0,0.0001735,2]
[422911546,1779615032000,-500.0,0.0001735,2]
[422911550,1779615032000,-500.0,0.0001735,2]
[422911549,1779615032000,-500.0,0.0001735,2]
[422911552,1779615032000,-500.0,0.0001735,2]
[422911551,1779615032000,-500.0,0.0001735,2]
[422911554,1779615032000,-500.0,0.0001735,2]
[422911556,1779615032000,-500.0,0.0001735,2]
[422911557,1779615032000,-500.0,0.0001735,2]
[422911561,1779615032000,-500.0,0.0001735,2]
[422911569,1779615032000,-500.0,0.0001735,2]
[422911563,1779615032000,-500.0,0.0001735,2]
[422911566,1779615032000,-500.0,0.0001735,2]
[422911565,1779615032000,-500.0,0.0001735,2]
[422911558,1779615032000,-500.0,0.0001735,2]
[422911555,1779615032000,-500.0,0.0001735,2]
[422911560,1779615032000,-500.0,0.0001735,2]
[422911562,1779615032000,-500.0,0.0001735,2]
[422911564,1779615032000,-500.0,0.0001735,2]
[422911567,1779615032000,-500.0,0.0001735,2]
[422911568,1779615032000,-500.0,0.0001735,2]
[422911508,1779615032000,-500.0,0.0001735,2]
[422911539,1779615032000,-500.0,0.0001735,2]
[422911533,1779615032000,-500.0,0.0001735,2]
[422911559,1779615032000,-500.0,0.0001735,2]
[422911541,1779615032000,-252.81112089,0.0001735,2]
[422911507,1779615032000,-500.0,0.0001735,2]
[422911540,1779615032000,-500.0,0.0001735,2]
[422911505,1779615032000,-285.67673828,0.0001735,2]
[422911515,1779615032000,-500.0,0.0001735,2]
[422911514,1779615032000,-500.0,0.0001735,2]
[422911511,1779615032000,-159.20790693,0.0001735,2]
[422911506,1779615032000,-500.0,0.0001735,2]
[422911510,1779615032000,-500.0,0.0001735,2]
[422911513,1779615032000,-500.0,0.0001735,2]
[422911516,1779615032000,-500.0,0.0001735,2]
[422911517,1779615032000,-500.0,0.0001735,2]
[422911520,1779615032000,-500.0,0.0001735,2]
[422911529,1779615032000,-500.0,0.0001735,2]
[422911521,1779615032000,-500.0,0.0001735,2]
[422911525,1779615032000,-500.0,0.0001735,2]
[422911512,1779615032000,-500.0,0.0001735,2]
[422911527,1779615032000,-500.0,0.0001735,2]
[422911522,1779615032000,-500.0,0.0001735,2]
[422911534,1779615032000,-500.0,0.0001735,2]
[422911538,1779615032000,-500.0,0.0001735,2]
[422911532,1779615032000,-500.0,0.0001735,2]
[422911531,1779615032000,-500.0,0.0001735,2]
[422911524,1779615032000,-500.0,0.0001735,2]
[422911535,1779615032000,-500.0,0.0001735,2]
[422911519,1779615032000,-500.0,0.0001735,2]
[422911528,1779615032000,-500.0,0.0001735,2]
[422911526,1779615032000,-500.0,0.0001735,2]
[422911518,1779615032000,-231.07552844,0.0001735,2]
[422911536,1779615032000,-500.0,0.0001735,2]
[422911523,1779615032000,-500.0,0.0001735,2]
[422911530,1779615032000,-500.0,0.0001735,2]
[422911599,1779615033000,-500.0,0.00017351,2]
[422911600,1779615033000,-500.0,0.00017351,2]
[422911603,1779615033000,-500.0,0.00017351,2]
[422911604,1779615033000,-500.0,0.00017351,2]
[422911601,1779615033000,-500.0,0.00017351,2]
[422911605,1779615033000,-500.0,0.00017351,2]
[422911606,1779615033000,-500.0,0.00017351,2]
[422911607,1779615033000,-500.0,0.00017351,2]
[422911608,1779615033000,-500.0,0.00017351,2]
[422911609,1779615033000,-500.0,0.00017351,2]
[422911602,1779615033000,-500.0,0.00017351,2]
[422911615,1779615033000,-500.0,0.00017351,2]
[422911610,1779615033000,-500.0,0.00017351,2]
[422911612,1779615033000,-500.0,0.00017351,2]
[422911613,1779615033000,-500.0,0.00017351,2]
[422911618,1779615033000,-500.0,0.00017351,2]
[422911614,1779615033000,-500.0,0.00017351,2]
[422911616,1779615033000,-500.0,0.00017351,2]
[422911619,1779615033000,-345.21699849,0.00017351,2]
[422911617,1779615033000,-500.0,0.00017351,2]
[422911620,1779615033000,-154.78300151,0.00017351,2]
[422911597,1779615033000,-500.0,0.00017351,2]
[422911622,1779615033000,-500.0,0.00017351,2]
[422911611,1779615033000,-500.0,0.00017351,2]
[422911595,1779615033000,-150.0,0.00017351,2]
[422911582,1779615033000,-500.0,0.0001735,2]
[422911598,1779615033000,-500.0,0.00017351,2]
[422911621,1779615033000,-500.0,0.00017351,2]
[422911579,1779615033000,-500.0,0.0001735,2]
[422911578,1779615033000,-500.0,0.0001735,2]
[422911574,1779615033000,-500.0,0.0001735,2]
[422911570,1779615033000,-500.0,0.0001735,2]
[422911571,1779615033000,-500.0,0.0001735,2]
[422911575,1779615033000,-500.0,0.0001735,2]
[422911572,1779615033000,-500.0,0.0001735,2]
[422911573,1779615033000,-500.0,0.0001735,2]
[422911577,1779615033000,-500.0,0.0001735,2]
[422911576,1779615033000,-175.28111208,0.0001735,2]
[422911580,1779615033000,-500.0,0.0001735,2]
[422911592,1779615033000,-500.0,0.0001735,2]
[422911583,1779615033000,-500.0,0.0001735,2]
[422911581,1779615033000,-500.0,0.0001735,2]
[422911584,1779615033000,-500.0,0.0001735,2]
[422911586,1779615033000,-500.0,0.0001735,2]
[422911587,1779615033000,-500.0,0.0001735,2]
[422911590,1779615033000,-500.0,0.0001735,2]
[422911589,1779615033000,-500.0,0.0001735,2]
[422911591,1779615033000,-500.0,0.0001735,2]
[422911588,1779615033000,-500.0,0.0001735,2]
[422911585,1779615033000,-500.0,0.0001735,2]
[422911593,1779615033000,-500.0,0.0001735,2]
[422911594,1779615033000,-200.00000001,0.0001735,2]
[422911596,1779615033000,-174.04525231,0.00017351,2]
[422911625,1779615033000,-500.0,0.00017351,2]
[422911645,1779615033000,-500.0,0.00017351,2]
[422911623,1779615033000,-500.0,0.00017351,2]
[422911655,1779615033000,-500.0,0.00017351,2]
[422911657,1779615033000,-560.54667082,0.00017351,2]
[422911658,1779615033000,-500.0,0.00017351,2]
[422911656,1779615033000,-500.0,0.00017351,2]
[422911659,1779615033000,-500.0,0.00017351,2]
[422911624,1779615033000,-343.21785169,0.00017351,2]
[422911663,1779615033000,-500.0,0.00017351,2]
[422911660,1779615033000,-172.12358848,0.00017351,2]
[422911661,1779615033000,-500.0,0.00017351,2]
[422911662,1779615033000,-150.0,0.00017351,2]
[422911665,1779615033000,-500.0,0.00017351,2]
[422911653,1779615033000,-500.0,0.00017351,2]
[422911667,1779615033000,-500.0,0.00017351,2]
[422911668,1779615033000,-500.0,0.00017351,2]
[422911669,1779615033000,-500.0,0.00017351,2]
[422911673,1779615033000,-500.0,0.00017351,2]
[422911676,1779615033000,-500.0,0.00017351,2]
[422911674,1779615033000,-500.0,0.00017351,2]
[422911672,1779615033000,-500.0,0.00017351,2]
[422911675,1779615033000,-500.0,0.00017351,2]
[422911671,1779615033000,-589.13369332,0.00017351,2]
[422911670,1779615033000,-500.0,0.00017351,2]
[422911677,1779615033000,-500.0,0.00017351,2]
[422911678,1779615033000,-500.0,0.00017351,2]
[422911666,1779615033000,-500.0,0.00017351,2]
[422911654,1779615033000,-500.0,0.00017351,2]
[422911664,1779615033000,-500.0,0.00017351,2]
[422911652,1779615033000,-459.97872907,0.00017351,2]
[422911626,1779615033000,-500.0,0.00017351,2]
[422911629,1779615033000,-500.0,0.00017351,2]
[422911630,1779615033000,-150.0,0.00017351,2]
[422911631,1779615033000,-150.0,0.00017351,2]
[422911651,1779615033000,-40.02127093,0.00017351,2]
[422911628,1779615033000,-500.0,0.00017351,2]
[422911632,1779615033000,-150.0,0.00017351,2]
[422911634,1779615033000,-217.14255649,0.00017351,2]
[422911633,1779615033000,-150.0,0.00017351,2]
[422911636,1779615033000,-500.0,0.00017351,2]
[422911635,1779615033000,-179.73514104,0.00017351,2]
[422911641,1779615033000,-500.0,0.00017351,2]
[422911627,1779615033000,-539.46814848,0.00017351,2]
[422911642,1779615033000,-500.0,0.00017351,2]
[422911640,1779615033000,-500.0,0.00017351,2]
[422911649,1779615033000,-500.0,0.00017351,2]
[422911650,1779615033000,-500.0,0.00017351,2]
[422911648,1779615033000,-500.0,0.00017351,2]
[422911644,1779615033000,-500.0,0.00017351,2]
[422911646,1779615033000,-500.0,0.00017351,2]
[422911643,1779615033000,-500.0,0.00017351,2]
[422911639,1779615033000,-500.0,0.00017351,2]
[422911637,1779615033000,-500.0,0.00017351,2]
[422911638,1779615033000,-500.0,0.00017351,2]
[422911647,1779615033000,-500.0,0.00017351,2]
[422911699,1779615034000,-150.0,0.00017662,2]
[422911692,1779615034000,-1832.9781872,0.00017543,2]
[422911691,1779615034000,-2000.0,0.000175,2]
[422911689,1779615034000,-150.0,0.00017425,2]
[422911688,1779615034000,-209.0,0.00017351,2]
[422911685,1779615034000,-500.0,0.00017351,2]
[422911681,1779615034000,-500.0,0.00017351,2]
[422911684,1779615034000,-500.0,0.00017351,2]
[422911683,1779615034000,-500.0,0.00017351,2]
[422911686,1779615034000,-500.0,0.00017351,2]
[422911682,1779615034000,-500.0,0.00017351,2]
[422911680,1779615034000,-500.0,0.00017351,2]
[422911679,1779615034000,-500.0,0.00017351,2]
[422911687,1779615034000,-382.05019127,0.00017351,2]
[422911696,1779615034000,-208.8304494,0.00017575,2]
[422911690,1779615034000,-150.0,0.00017484,2]
[422911695,1779615034000,-14467.5,0.00017572,2]
[422911694,1779615034000,-150.0,0.00017544,2]
[422911711,1779615034000,-6319.78750001,0.00017728,2]
[422911706,1779615034000,-844.11196601,0.000177,2]
[422911708,1779615034000,-11360.95941324,0.00017728,2]
[422911709,1779615034000,-1254.41808677,0.00017728,2]
[422911710,1779615034000,-1406.01249999,0.00017728,2]
[422911707,1779615034000,-10586.29,0.00017728,2]
[422911705,1779615034000,-3054.81306783,0.000177,2]
[422911703,1779615034000,-477.18463989,0.000177,2]
[422911704,1779615034000,-639.7639547,0.000177,2]
[422911701,1779615034000,-2000.0,0.00017699,2]
[422911700,1779615034000,-499.4,0.00017676,2]
[422911693,1779615034000,-387.00698607,0.00017543,2]
[422911698,1779615034000,-167.0,0.00017657,2]
[422911697,1779615034000,-500.0,0.00017623,2]
[422911702,1779615034000,-494.46646672,0.000177,2]
[422911745,1779615038000,-500.0,0.00017799,2]
[422911746,1779615038000,-500.0,0.00017799,2]
[422911744,1779615038000,-500.0,0.00017799,2]
[422911737,1779615038000,-2893.82,0.00017799,2]
[422911741,1779615038000,-500.0,0.00017799,2]
[422911740,1779615038000,-2893.82,0.00017799,2]
[422911738,1779615038000,-2893.82,0.00017799,2]
[422911747,1779615038000,-500.0,0.00017799,2]
[422911749,1779615038000,-500.0,0.00017799,2]
[422911752,1779615038000,-500.0,0.00017799,2]
[422911739,1779615038000,-2893.82,0.00017799,2]
[422911742,1779615038000,-500.0,0.00017799,2]
[422911743,1779615038000,-500.0,0.00017799,2]
[422911751,1779615038000,-500.0,0.00017799,2]
[422911750,1779615038000,-500.0,0.00017799,2]
[422911761,1779615038000,-500.0,0.00017799,2]
[422911762,1779615038000,-500.0,0.00017799,2]
[422911727,1779615038000,-322.946313,0.00017787,2]
[422911758,1779615038000,-500.0,0.00017799,2]
[422911748,1779615038000,-500.0,0.00017799,2]
[422911731,1779615038000,-2893.82,0.00017799,2]
[422911735,1779615038000,-2893.82,0.00017799,2]
[422911734,1779615038000,-2893.82,0.00017799,2]
[422911712,1779615038000,-9537.66486797,0.00017194,2]
[422911723,1779615038000,-20806.0,0.00017781,2]
[422911714,1779615038000,-8557.99868277,0.000177,2]
[422911717,1779615038000,-152.9798762,0.00017781,2]
[422911719,1779615038000,-177.68009321,0.00017781,2]
[422911715,1779615038000,-3680.20249999,0.00017728,2]
[422911716,1779615038000,-480.79081795,0.00017775,2]
[422911721,1779615038000,-161.60731167,0.00017781,2]
[422911722,1779615038000,-241.30350221,0.00017781,2]
[422911733,1779615038000,-2893.82,0.00017799,2]
[422911718,1779615038000,-260.81719355,0.00017781,2]
[422911720,1779615038000,-233.75081146,0.00017781,2]
[422911725,1779615038000,-164.192779,0.00017787,2]
[422911753,1779615038000,-500.0,0.00017799,2]
[422911724,1779615038000,-150.0,0.00017781,2]
[422911736,1779615038000,-2893.82,0.00017799,2]
[422911726,1779615038000,-201.124234,0.00017787,2]
[422911730,1779615038000,-2893.82,0.00017799,2]
[422911732,1779615038000,-2893.82,0.00017799,2]
[422911729,1779615038000,-500.0,0.00017798,2]
[422911713,1779615038000,-9537.66486797,0.00017395,2]
[422911757,1779615038000,-500.0,0.00017799,2]
[422911728,1779615038000,-661.0533358,0.0001779,2]
[422911755,1779615038000,-500.0,0.00017799,2]
[422911788,1779615038000,-500.0,0.00017799,2]
[422911786,1779615038000,-500.0,0.00017799,2]
[422911785,1779615038000,-500.0,0.00017799,2]
[422911789,1779615038000,-500.0,0.00017799,2]
[422911790,1779615038000,-916.58,0.00017799,2]
[422911791,1779615038000,-916.58,0.00017799,2]
[422911793,1779615038000,-916.58,0.00017799,2]
[422911792,1779615038000,-916.58,0.00017799,2]
[422911795,1779615038000,-916.58,0.00017799,2]
[422911787,1779615038000,-500.0,0.00017799,2]
[422911805,1779615038000,-3628.05,0.00017799,2]
[422911796,1779615038000,-916.58,0.00017799,2]
[422911802,1779615038000,-3628.05,0.00017799,2]
[422911800,1779615038000,-916.58,0.00017799,2]
[422911801,1779615038000,-209.0,0.00017799,2]
[422911803,1779615038000,-3628.05,0.00017799,2]
[422911798,1779615038000,-916.58,0.00017799,2]
[422911804,1779615038000,-3628.05,0.00017799,2]
[422911799,1779615038000,-916.58,0.00017799,2]
[422911754,1779615038000,-500.0,0.00017799,2]
[422911794,1779615038000,-916.58,0.00017799,2]
[422911780,1779615038000,-500.0,0.00017799,2]
[422911797,1779615038000,-916.58,0.00017799,2]
[422911765,1779615038000,-457.9767215,0.00017799,2]
[422911759,1779615038000,-500.0,0.00017799,2]
[422911756,1779615038000,-500.0,0.00017799,2]
[422911760,1779615038000,-500.0,0.00017799,2]
[422911763,1779615038000,-500.0,0.00017799,2]
[422911764,1779615038000,-500.0,0.00017799,2]
[422911767,1779615038000,-500.0,0.00017799,2]
[422911768,1779615038000,-500.0,0.00017799,2]
[422911784,1779615038000,-500.0,0.00017799,2]
[422911770,1779615038000,-500.0,0.00017799,2]
[422911771,1779615038000,-500.0,0.00017799,2]
[422911766,1779615038000,-500.0,0.00017799,2]
[422911773,1779615038000,-500.0,0.00017799,2]
[422911783,1779615038000,-500.0,0.00017799,2]
[422911782,1779615038000,-500.0,0.00017799,2]
[422911781,1779615038000,-500.0,0.00017799,2]
[422911774,1779615038000,-500.0,0.00017799,2]
[422911778,1779615038000,-505.8966892,0.00017799,2]
[422911779,1779615038000,-401.56350951,0.00017799,2]
[422911776,1779615038000,-500.0,0.00017799,2]
[422911772,1779615038000,-500.0,0.00017799,2]
[422911775,1779615038000,-500.0,0.00017799,2]
[422911777,1779615038000,-500.0,0.00017799,2]
[422911852,1779615039000,-500.0,0.00017899,2]
[422911850,1779615039000,-500.0,0.00017899,2]
[422911844,1779615039000,-500.0,0.00017899,2]
[422911842,1779615039000,-500.0,0.00017899,2]
[422911856,1779615039000,-500.0,0.00017899,2]
[422911845,1779615039000,-500.0,0.00017899,2]
[422911874,1779615039000,-500.0,0.00017899,2]
[422911841,1779615039000,-500.0,0.00017899,2]
[422911839,1779615039000,-300.0,0.00017898,2]
[422911837,1779615039000,-300.0,0.00017898,2]
[422911838,1779615039000,-500.0,0.00017898,2]
[422911849,1779615039000,-500.0,0.00017899,2]
[422911835,1779615039000,-151.0,0.00017897,2]
[422911843,1779615039000,-500.0,0.00017899,2]
[422911851,1779615039000,-500.0,0.00017899,2]
[422911863,1779615039000,-2893.82,0.00017899,2]
[422911860,1779615039000,-2893.82,0.00017899,2]
[422911854,1779615039000,-508.87111765,0.00017899,2]
[422911853,1779615039000,-500.0,0.00017899,2]
[422911857,1779615039000,-500.0,0.00017899,2]
[422911855,1779615039000,-500.0,0.00017899,2]
[422911858,1779615039000,-598.15296991,0.00017899,2]
[422911859,1779615039000,-2893.82,0.00017899,2]
[422911862,1779615039000,-2893.82,0.00017899,2]
[422911864,1779615039000,-2893.82,0.00017899,2]
[422911865,1779615039000,-2893.82,0.00017899,2]
[422911873,1779615039000,-500.0,0.00017899,2]
[422911866,1779615039000,-500.0,0.00017899,2]
[422911869,1779615039000,-500.0,0.00017899,2]
[422911848,1779615039000,-500.0,0.00017899,2]
[422911861,1779615039000,-2893.82,0.00017899,2]
[422911840,1779615039000,-300.0,0.00017898,2]
[422911812,1779615039000,-3628.05,0.00017799,2]
[422911847,1779615039000,-500.0,0.00017899,2]
[422911871,1779615039000,-500.0,0.00017899,2]
[422911806,1779615039000,-3628.05,0.00017799,2]
[422911807,1779615039000,-3628.05,0.00017799,2]
[422911808,1779615039000,-3628.05,0.00017799,2]
[422911810,1779615039000,-3628.05,0.00017799,2]
[422911811,1779615039000,-3628.05,0.00017799,2]
[422911820,1779615039000,-306.09243083,0.00017799,2]
[422911809,1779615039000,-3628.05,0.00017799,2]
[422911819,1779615039000,-300.0,0.00017799,2]
[422911821,1779615039000,-621.5832555,0.00017799,2]
[422911814,1779615039000,-312.08235769,0.00017799,2]
[422911817,1779615039000,-666.0,0.00017799,2]
[422911818,1779615039000,-300.0,0.00017799,2]
[422911815,1779615039000,-300.0,0.00017799,2]
[422911846,1779615039000,-500.0,0.00017899,2]
[422911816,1779615039000,-300.0,0.00017799,2]
[422911822,1779615039000,-2500000.0,0.000178,2]
[422911824,1779615039000,-487.0,0.000178,2]
[422911829,1779615039000,-211.654753,0.00017885,2]
[422911834,1779615039000,-1350.0,0.00017891,7]
[422911826,1779615039000,-195.39157573,0.00017811,2]
[422911833,1779615039000,-650.0,0.00017891,2]
[422911825,1779615039000,-759.63,0.000178,2]
[422911823,1779615039000,-487.0,0.000178,2]
[422911827,1779615039000,-300.0,0.00017848,2]
[422911832,1779615039000,-2500.0,0.00017891,2]
[422911828,1779615039000,-418.406452,0.00017876,2]
[422911830,1779615039000,-250.52805,0.00017885,2]
[422911831,1779615039000,-173.160415,0.00017885,2]
[422911836,1779615039000,-300.0,0.00017898,2]
[422911813,1779615039000,-600.0,0.00017799,2]
[422911868,1779615039000,-500.0,0.00017899,2]
[422911897,1779615039000,-500.0,0.00017899,2]
[422911867,1779615039000,-500.0,0.00017899,2]
[422911909,1779615039000,-500.0,0.00017899,2]
[422911910,1779615039000,-500.0,0.00017899,2]
[422911907,1779615039000,-500.0,0.00017899,2]
[422911911,1779615039000,-500.0,0.00017899,2]
[422911912,1779615039000,-500.0,0.00017899,2]
[422911908,1779615039000,-500.0,0.00017899,2]